fUST/lending_fUST_20251216
["ID","MTS","AMOUNT","RATE_DAILY","PERIOD"]
[398589279,1765857106913,-645.68,0.00013424,2]
[398589280,1765857106923,-22080.53,0.00013424,2]
[398589281,1765857106932,-3719.53,0.00013424,2]
[398589282,1765857106941,-835.99,0.00013424,2]
[398589283,1765857106950,-1808.12,0.00013424,2]
[398589284,1765857106960,-500.0,0.00013424,2]
[398589285,1765857106968,-500.0,0.00013424,2]
[398589286,1765857106977,-500.0,0.00013424,2]
[398589287,1765857106986,-8246.11,0.00013424,2]
[398589288,1765857106995,-1665.52,0.00013424,2]
[398589289,1765857107005,-500.0,0.00013424,2]
[398589290,1765857107014,-500.0,0.00013424,2]
[398589291,1765857107023,-500.0,0.00013424,2]
[398589292,1765857107032,-505.05,0.00013424,2]
[398589293,1765857107042,-500.0,0.00013424,2]
[398589294,1765857107051,-5019.38,0.00013424,2]
[398589295,1765857107061,-688.63,0.00013424,2]
[398589296,1765857107070,-980.38,0.00013424,2]
[398589297,1765857107079,-2863.98,0.00013424,2]
[398589298,1765857107089,-2333.27,0.00013424,2]
[398589299,1765857107098,-500.0,0.00013424,2]
[398589300,1765857107108,-304.71227289,0.00013424,2]
[398589301,1765857107117,-884.98,0.00013424,2]
[398589302,1765857107126,-2011.13,0.00013424,2]
[398589303,1765857107138,-500.0,0.00013424,2]
[398589304,1765857107148,-561.14,0.00013424,2]
[398589305,1765857107158,-1161.7,0.00013424,2]
[398589306,1765857107167,-5555.9,0.00013424,2]
[398589307,1765857107176,-1243.71,0.00013424,2]
[398589308,1765857107186,-35354.14,0.00013424,2]
[398589309,1765857107195,-9588.87,0.00013424,2]
[398589310,1765857107204,-500.0,0.00013424,2]
[398589311,1765857107213,-1419.14,0.00013424,2]
[398589312,1765857107222,-1172.55,0.00013424,2]
[398589313,1765857107232,-500.0,0.00013424,2]
[398589314,1765857107241,-500.0,0.00013424,2]
[398589315,1765857107249,-2089.03,0.00013424,2]
[398589316,1765857107259,-3963.15,0.00013424,2]
[398589317,1765857107268,-2257.39,0.00013424,2]
[398589318,1765857107278,-1097.79,0.00013424,2]
[398589319,1765857107287,-1991.38,0.00013424,2]
[398589320,1765857107297,-841.22,0.00013424,2]
[398589321,1765857107307,-500.0,0.00013424,2]
[398589322,1765857107318,-500.0,0.00013424,2]
[398589323,1765857107328,-500.0,0.00013424,2]
[398589324,1765857107337,-800.38,0.00013424,2]
[398589325,1765857107347,-1431.03,0.00013424,2]
[398589326,1765857107356,-8351.41,0.00013424,2]
[398589327,1765857107366,-500.0,0.00013424,2]
[398589328,1765857107375,-1423.76,0.00013424,2]
[398589329,1765857107385,-896.79,0.00013424,2]
[398589330,1765857107394,-500.0,0.00013424,2]
[398589331,1765857107403,-1140.27,0.00013424,2]
[398589332,1765857107412,-4075.24,0.00013424,2]
[398589333,1765857107426,-914.19,0.00013424,2]
[398589334,1765857107437,-500.0,0.00013424,2]
[398589335,1765857107446,-500.0,0.00013424,2]
[398589336,1765857107455,-3247.84,0.00013424,2]
[398589337,1765857107465,-1445.43,0.00013424,2]
[398589338,1765857107474,-500.0,0.00013424,2]
[398589339,1765857107483,-940.6,0.00013424,2]
[398589340,1765857107492,-500.0,0.00013424,2]
[398589341,1765857107501,-1956.75,0.00013424,2]
[398589342,1765857107510,-500.0,0.00013424,2]
[398589343,1765857107519,-1069.42,0.00013424,2]
[398589344,1765857107529,-2026.56,0.00013424,2]
[398589345,1765857107539,-1628.96,0.00013424,2]
[398589346,1765857107548,-1954.46,0.00013424,2]
[398589347,1765857107557,-1842.29,0.00013424,2]
[398589348,1765857107566,-500.0,0.00013424,2]
[398589349,1765857107576,-500.0,0.00013424,2]
[398589350,1765857107585,-1249.58,0.00013424,2]
[398589351,1765857107594,-5203.28,0.00013424,2]
[398589352,1765857107603,-2367.41,0.00013424,2]
[398589353,1765857107613,-3863.02,0.00013424,2]
[398589354,1765857107622,-504.14225939,0.00013424,2]
[398589355,1765857107631,-2306.5,0.00013424,2]
[398589356,1765857107640,-5137.41,0.00013424,2]
[398589357,1765857107649,-500.0,0.00013424,2]
[398589358,1765857107659,-674.15,0.00013424,2]
[398589359,1765857107668,-560.29,0.00013424,2]
[398589360,1765857107678,-500.0,0.00013424,2]
[398589361,1765857107688,-500.0,0.00013424,2]
[398589362,1765857107697,-2457.45,0.00013424,2]
[398589363,1765857107706,-1620.3,0.00013424,2]
[398589364,1765857107715,-935.88,0.00013424,2]
[398589365,1765857107724,-2175.69,0.00013424,2]
[398589366,1765857107734,-500.0,0.00013424,2]
[398589367,1765857107743,-500.0,0.00013424,2]
[398589368,1765857107752,-831.4,0.00013424,2]
[398589369,1765857107762,-537.44,0.00013424,2]
[398589370,1765857107771,-500.0,0.00013424,2]
[398589371,1765857107781,-500.0,0.00013424,2]
[398589372,1765857107790,-4413.50411212,0.000135,2]
[398589373,1765857107800,-864.0,0.00013523,2]
[398589374,1765857107810,-10056.23227979,0.0001354,2]
[398589375,1765857107819,-32134.74534051,0.000136,3]
[398589376,1765857107828,-3060.99999998,0.000136,3]
[398589377,1765857107838,-152.08,0.000136,2]
[398589378,1765857107848,-300.0,0.00013673,2]
[398589379,1765857107857,-688.49839244,0.00013691,2]
[398589380,1765857107867,-3839.6,0.00013698,2]
[398589381,1765857107876,-500.0,0.00013698,2]
[398589382,1765857107886,-500.0,0.00013698,2]
[398589383,1765857107895,-500.0,0.00013698,2]
[398589384,1765857107904,-500.0,0.00013698,2]
[398589385,1765857107914,-500.0,0.00013698,2]
[398589386,1765857107923,-500.0,0.00013698,2]
[398589387,1765857107932,-500.0,0.00013698,2]
[398589388,1765857107941,-500.0,0.00013698,2]
[398589389,1765857107951,-500.0,0.00013698,2]
[398589390,1765857107961,-500.0,0.00013698,2]
[398589391,1765857107970,-516.03228448,0.00013698,2]
[398589392,1765857107980,-500.0,0.00013698,2]
[398589393,1765857107990,-500.0,0.00013698,2]
[398589394,1765857108000,-500.0,0.00013698,2]
[398589395,1765857108010,-500.0,0.00013698,2]
[398589396,1765857108020,-609.81,0.00013698,2]
[398589397,1765857108030,-600.92,0.00013698,2]
[398589398,1765857108040,-500.26,0.00013698,2]
[398589399,1765857108050,-635.26,0.00013698,2]
[398589400,1765857108060,-500.0,0.00013698,2]
[398589401,1765857108069,-545.90719848,0.00013698,2]
[398589402,1765857108079,-2131.63,0.00013698,2]
[398589403,1765857108088,-500.0,0.00013698,2]
[398589404,1765857108100,-1239.05,0.00013698,2]
[398589405,1765857108110,-500.0,0.00013698,2]
[398589406,1765857108119,-500.0,0.00013698,2]
[398589407,1765857108129,-500.0,0.00013698,2]
[398589408,1765857108143,-500.0,0.00013698,2]
[398589409,1765857108153,-500.0,0.00013698,2]
[398589410,1765857108162,-500.0,0.00013698,2]
[398589411,1765857108172,-500.0,0.00013698,2]
[398589412,1765857108182,-832.5,0.00013698,2]
[398589413,1765857108192,-500.0,0.00013698,2]
[398589414,1765857108202,-1281.42,0.00013698,2]
[398589415,1765857108212,-706.65,0.00013698,2]
[398589416,1765857108222,-500.0,0.00013698,2]
[398589417,1765857108231,-500.0,0.00013698,2]
[398589418,1765857108241,-500.0,0.00013698,2]
[398589419,1765857108250,-500.0,0.00013698,2]
[398589420,1765857108260,-487.42047069,0.00013698,2]
[398589421,1765857108270,-500.0,0.00013698,2]
[398589422,1765857108279,-970.13,0.00013698,2]
[398589423,1765857108289,-500.0,0.00013698,2]
[398589424,1765857108299,-500.0,0.00013698,2]
[398589425,1765857108308,-905.09,0.00013698,2]
[398589426,1765857108318,-500.0,0.00013698,2]
[398589427,1765857108328,-500.0,0.00013698,2]
[398589428,1765857108338,-1438.77,0.00013698,2]
[398589429,1765857108347,-500.0,0.00013698,2]
[398589430,1765857108357,-2194.500583,0.00013698,2]
[398589431,1765857108367,-867.63,0.00013698,2]
[398589432,1765857108376,-500.81,0.00013698,2]
[398589433,1765857108386,-922.31,0.00013698,2]
[398589434,1765857108396,-808.83,0.00013698,2]
[398589435,1765857108406,-500.0,0.00013698,2]
[398589436,1765857108417,-772.63,0.00013698,2]
[398589437,1765857108427,-500.0,0.00013698,2]
[398589438,1765857108436,-500.0,0.00013698,2]
[398589439,1765857108448,-500.0,0.00013698,2]
[398589440,1765857108458,-500.0,0.00013698,2]
[398589441,1765857108469,-500.0,0.00013698,2]
[398589442,1765857108479,-500.0,0.00013698,2]
[398589443,1765857108488,-306.22215725,0.00013698,2]
[398589444,1765857108498,-500.0,0.00013698,2]
[398589445,1765857108508,-724.68,0.00013698,2]
[398589446,1765857108518,-728.64,0.00013698,2]
[398589447,1765857108527,-1000.0,0.00013698,2]
[398589448,1765857108538,-500.0,0.00013698,2]
[398589449,1765857108549,-788.39,0.00013698,2]
[398589450,1765857108559,-713.19,0.00013698,2]
[398589451,1765857108569,-711.19,0.00013698,2]
[398589452,1765857108578,-1903.91,0.00013698,2]
[398589453,1765857108588,-1163.59,0.00013698,2]
[398589454,1765857108598,-541.86,0.00013698,2]
[398589455,1765857108609,-873.56,0.00013698,2]
[398589456,1765857108619,-199.86525869,0.00013698,2]
[398589457,1765857108629,-500.0,0.00013698,2]
[398589458,1765857108639,-500.0,0.00013698,2]
[398589459,1765857108650,-500.0,0.00013698,2]
[398589460,1765857108660,-623.95,0.00013698,2]
[398589461,1765857108670,-500.0,0.00013698,2]
[398589462,1765857108682,-500.0,0.00013698,2]
[398589463,1765857108692,-500.0,0.00013698,2]
[398589464,1765857108702,-939.88,0.00013698,2]
[398589465,1765857108712,-514.0,0.00013698,2]
[398589466,1765857108723,-500.0,0.00013698,2]
[398589467,1765857108732,-500.0,0.00013698,2]
[398589468,1765857108742,-502.68410806,0.00013698,2]
[398589469,1765857108751,-1404.96,0.00013698,2]
[398589470,1765857108761,-500.0,0.00013698,2]
[398589471,1765857108771,-500.0,0.00013698,2]
[398589472,1765857108781,-500.0,0.00013698,2]
[398589473,1765857108791,-500.0,0.00013698,2]
[398589474,1765857108801,-2624.19,0.00013698,2]
[398589475,1765857108812,-500.0,0.00013698,2]
[398589476,1765857108822,-500.0,0.00013698,2]
[398589477,1765857108832,-500.0,0.00013698,2]
[398589478,1765857108843,-500.0,0.00013698,2]
[398589479,1765857108852,-500.0,0.00013698,2]
[398589480,1765857108862,-200.37762182,0.00013698,2]
[398589481,1765857108872,-1165.8,0.00013698,2]
[398589482,1765857108882,-782.31,0.00013698,2]
[398589483,1765857108892,-500.0,0.00013698,2]
[398589484,1765857108902,-423.1925598,0.00013698,2]
[398589485,1765857108912,-500.0,0.00013698,2]
[398589486,1765857108922,-500.0,0.00013698,2]
[398589487,1765857108932,-2047.92,0.00013698,2]
[398589488,1765857108941,-500.0,0.00013698,2]
[398589489,1765857108952,-1419.58,0.00013698,2]
[398589490,1765857108962,-2858.67,0.00013698,2]
[398589491,1765857108972,-915.74,0.00013698,2]
[398589492,1765857108982,-561.34,0.00013698,2]
[398589493,1765857108992,-862.14,0.00013698,2]
[398589494,1765857109002,-728.64,0.00013698,2]
[398589495,1765857109012,-1196.22,0.00013698,2]
[398589496,1765857109022,-500.0,0.00013698,2]
[398589497,1765857109032,-764.95,0.00013698,2]
[398589498,1765857109042,-1723.48,0.00013698,2]
[398589499,1765857109052,-795.49,0.00013698,2]
[398589500,1765857109062,-500.0,0.00013698,2]
[398589501,1765857109072,-579.03,0.00013698,2]
[398589502,1765857109083,-527.94,0.00013698,2]
[398589503,1765857109093,-500.0,0.00013698,2]
[398589504,1765857109102,-613.42,0.00013698,2]
[398589505,1765857109112,-852.9,0.00013698,2]
[398589506,1765857109122,-1741.83,0.00013698,2]
[398589507,1765857109131,-500.0,0.00013698,2]
[398589508,1765857109146,-500.0,0.00013698,2]
[398589509,1765857109157,-579.96,0.00013698,2]
[398589510,1765857109167,-500.0,0.00013698,2]
[398589511,1765857109178,-500.0,0.00013698,2]
[398589512,1765857109188,-500.0,0.00013698,2]
[398589513,1765857109198,-500.0,0.00013698,2]
[398589514,1765857109208,-500.0,0.00013698,2]
[398589515,1765857109219,-500.0,0.00013698,2]
[398589516,1765857109230,-500.0,0.00013698,2]
[398589517,1765857109240,-500.0,0.00013698,2]
[398589518,1765857109250,-500.0,0.00013698,2]
[398589519,1765857109260,-500.0,0.00013698,2]
[398589520,1765857109478,-500.0,0.00013698,2]
[398589521,1765857109491,-500.0,0.00013698,2]
[398589522,1765857109501,-500.0,0.00013698,2]
[398589523,1765857109512,-500.0,0.00013698,2]
[398589524,1765857109522,-500.0,0.00013698,2]
[398589525,1765857109532,-500.0,0.00013698,2]
[398589526,1765857109541,-500.0,0.00013698,2]
[398589527,1765857109550,-500.0,0.00013698,2]
[398589528,1765857109559,-500.0,0.00013698,2]
[398589529,1765857109568,-484.81617135,0.00013698,2]
[398589530,1765857109577,-882.7,0.00013698,2]
[398589531,1765857109586,-500.0,0.00013698,2]
[398589532,1765857109595,-500.0,0.00013698,2]
[398589533,1765857109604,-500.0,0.00013698,2]
[398589534,1765857109614,-500.0,0.00013698,2]
[398589535,1765857109626,-263.94461744,0.00013698,2]
[398589536,1765857109635,-909.29,0.00013698,2]
[398589537,1765857109644,-500.0,0.00013698,2]
[398589538,1765857109653,-500.0,0.00013698,2]
[398589539,1765857109663,-500.0,0.00013698,2]
[398589540,1765857109672,-1389.03,0.00013698,2]
[398589541,1765857109682,-652.64,0.00013698,2]
[398589542,1765857109692,-500.0,0.00013698,2]
[398589543,1765857109703,-863.06,0.00013698,2]
[398589544,1765857109714,-946.95,0.00013698,2]
[398589545,1765857109723,-500.0,0.00013698,2]
[398589546,1765857109732,-752.63,0.00013698,2]
[398589547,1765857109741,-500.0,0.00013698,2]
[398589548,1765857109751,-500.0,0.00013698,2]
[398589549,1765857109761,-500.0,0.00013698,2]
[398589550,1765857109770,-1824.47,0.00013698,2]
[398589551,1765857109780,-631.43,0.00013698,2]
[398589552,1765857109789,-548.39,0.00013698,2]
[398589553,1765857109801,-5069.0,0.00013698,2]
[398589554,1765857109811,-869.38,0.00013698,2]
[398589555,1765857109821,-500.0,0.00013698,2]
[398589556,1765857109832,-273.74178804,0.00013698,2]
[398589557,1765857109842,-1418.86,0.00013698,2]
[398589558,1765857109853,-1398.62,0.00013698,2]
[398589559,1765857109862,-2490.08,0.00013698,2]
[398589560,1765857109872,-500.0,0.00013698,2]
[398589561,1765857109881,-886.06,0.00013698,2]
[398589562,1765857109891,-500.0,0.00013698,2]
[398589563,1765857109901,-500.0,0.00013698,2]
[398589564,1765857109910,-886.48,0.00013698,2]
[398589565,1765857109920,-528.18,0.00013698,2]
[398589566,1765857109929,-1144.03,0.00013698,2]
[398589567,1765857109939,-1839.21,0.00013698,2]
[398589568,1765857109948,-500.0,0.00013698,2]
[398589569,1765857109958,-760.81,0.00013698,2]
[398589570,1765857109968,-500.0,0.00013698,2]
[398589571,1765857109977,-578.54,0.00013698,2]
[398589572,1765857109987,-500.0,0.00013698,2]
[398589573,1765857109997,-525.22,0.00013698,2]
[398589574,1765857110006,-1799.91,0.00013698,2]
[398589575,1765857110016,-500.0,0.00013698,2]
[398589576,1765857110026,-1395.69,0.00013698,2]
[398589577,1765857110036,-500.0,0.00013698,2]
[398589578,1765857110045,-3362.84,0.00013698,2]
[398589579,1765857110055,-3362.84,0.00013698,2]
[398589580,1765857110064,-3362.84,0.00013698,2]
[398589581,1765857110073,-3362.84,0.00013698,2]
[398589582,1765857110083,-3362.84,0.00013698,2]
[398589583,1765857110092,-3362.84,0.00013698,2]
[398589584,1765857110102,-3362.84,0.00013698,2]
[398589585,1765857110111,-3362.84,0.00013698,2]
[398589586,1765857110121,-3362.84,0.00013698,2]
[398589587,1765857110131,-3362.84,0.00013698,2]
[398589588,1765857110144,-3362.84,0.00013698,2]
[398589589,1765857110155,-3362.84,0.00013698,2]
[398589590,1765857110164,-3362.84,0.00013698,2]
[398589591,1765857110175,-3362.84,0.00013698,2]
[398589592,1765857110186,-3362.84,0.00013698,2]
[398589593,1765857110196,-3362.84,0.00013698,2]
[398589594,1765857110206,-3362.84,0.00013698,2]
[398589595,1765857110215,-3362.84,0.00013698,2]
[398589596,1765857110228,-3362.84,0.00013698,2]
[398589597,1765857110239,-3362.84,0.00013698,2]
[398589598,1765857110249,-500.0,0.00013698,2]
[398589599,1765857110258,-3362.84,0.00013698,2]
[398589600,1765857110269,-500.0,0.00013698,2]
[398589601,1765857110278,-3362.84,0.00013698,2]
[398589602,1765857110287,-3362.84,0.00013698,2]
[398589603,1765857110297,-3362.93585434,0.00013698,2]
[398589604,1765857110309,-2489.6,0.00013698,2]
[398589605,1765857110318,-500.0,0.00013698,2]
[398589606,1765857110327,-500.0,0.00013698,2]
[398589607,1765857110337,-500.0,0.00013698,2]
[398589608,1765857110347,-526.55148947,0.00013698,2]
[398589609,1765857110357,-500.0,0.00013698,2]
[398589610,1765857110367,-3564.58,0.00013698,2]
[398589611,1765857110376,-1851.38,0.00013698,2]
[398589612,1765857110385,-1892.77,0.00013698,2]
[398589613,1765857110395,-500.0,0.00013698,2]
[398589614,1765857110405,-554.05,0.00013698,2]
[398589615,1765857110415,-625.7,0.00013698,2]
[398589616,1765857110425,-614.05,0.00013698,2]
[398589617,1765857110434,-1268.17,0.00013698,2]
[398589618,1765857110443,-250.73723896,0.00013698,2]
[398589619,1765857110453,-2548.3,0.00013698,2]
[398589620,1765857110463,-964.39,0.00013698,2]
[398589621,1765857110472,-500.0,0.00013698,2]
[398589622,1765857110481,-500.0,0.00013698,2]
[398589623,1765857110491,-2757.29,0.00013698,2]
[398589624,1765857110500,-921.12,0.00013698,2]
[398589625,1765857110509,-1379.13,0.00013698,2]
[398589626,1765857110519,-506.47162622,0.00013698,2]
[398589627,1765857110534,-500.0,0.00013698,2]
[398589628,1765857110544,-1281.57,0.00013698,2]
[398589629,1765857110555,-500.0,0.00013698,2]
[398589630,1765857110564,-500.0,0.00013698,2]
[398589631,1765857110573,-591.0,0.00013698,2]
[398589632,1765857110583,-500.0,0.00013698,2]
[398589633,1765857110593,-621.24,0.00013698,2]
[398589634,1765857110602,-500.0,0.00013698,2]
[398589635,1765857110612,-858.92,0.00013698,2]
[398589636,1765857110621,-604.25,0.00013698,2]
[398589637,1765857110630,-601.93,0.00013698,2]
[398589638,1765857110639,-1724.77,0.00013698,2]
[398589639,1765857110649,-500.0,0.00013698,2]
[398589640,1765857110659,-1883.58,0.00013698,2]
[398589641,1765857110668,-500.0,0.00013698,2]
[398589642,1765857110677,-897.25,0.00013698,2]
[398589643,1765857110686,-1210.79,0.00013698,2]
[398589644,1765857110695,-1351.77,0.00013698,2]
[398589645,1765857110705,-500.0,0.00013698,2]
[398589646,1765857110714,-773.94,0.00013698,2]
[398589647,1765857110724,-724.47,0.00013698,2]
[398589648,1765857110734,-500.0,0.00013698,2]
[398589649,1765857110743,-1559.66,0.00013698,2]
[398589650,1765857110754,-658.19,0.00013698,2]
[398589651,1765857110763,-901.9,0.00013698,2]
[398589652,1765857110773,-500.0,0.00013698,2]
[398589653,1765857110782,-1664.36,0.00013698,2]
[398589654,1765857110791,-500.0,0.00013698,2]
[398589655,1765857110800,-540.02,0.00013698,2]
[398589656,1765857110809,-1280.6,0.00013698,2]
[398589657,1765857110818,-1404.56,0.00013698,2]
[398589658,1765857110827,-617.48799377,0.00013698,2]
[398589659,1765857110837,-577.11,0.00013698,2]
[398589660,1765857110847,-517.8,0.00013698,2]
[398589661,1765857110855,-851.34,0.00013698,2]
[398589662,1765857110864,-1225.41,0.00013698,2]
[398589663,1765857110874,-500.0,0.00013698,2]
[398589664,1765857110884,-393.10735621,0.00013698,2]
[398589665,1765857110893,-6779.98,0.00013698,2]
[398589666,1765857110902,-500.0,0.00013698,2]
[398589667,1765857110911,-500.0,0.00013698,2]
[398589668,1765857110921,-500.0,0.00013698,2]
[398589669,1765857110930,-591.32428503,0.00013698,2]
[398589670,1765857110939,-879.62,0.00013698,2]
[398589671,1765857110950,-849.34,0.00013698,2]
[398589672,1765857110959,-4220.16,0.00013698,2]
[398589673,1765857110969,-500.0,0.00013698,2]
[398589674,1765857110978,-500.0,0.00013698,2]
[398589675,1765857110987,-500.0,0.00013698,2]
[398589676,1765857110997,-1000.0,0.00013698,2]
[398589677,1765857111007,-1000.0,0.00013698,2]
[398589678,1765857111016,-1000.0,0.00013698,2]
[398589679,1765857111025,-1000.0,0.00013698,2]
[398589680,1765857111035,-1000.0,0.00013698,2]
[398589681,1765857111044,-1000.0,0.00013698,2]
[398589682,1765857111055,-1000.0,0.00013698,2]
[398589683,1765857111065,-1000.0,0.00013698,2]
[398589684,1765857111075,-1000.0,0.00013698,2]
[398589685,1765857111084,-1000.0,0.00013698,2]
[398589686,1765857111093,-2541.48,0.00013698,2]
[398589687,1765857111103,-1000.0,0.00013698,2]
[398589688,1765857111113,-435.31685759,0.00013698,2]
[398589689,1765857111124,-618.0,0.00013698,2]
[398589690,1765857111133,-2058.03,0.00013698,2]
[398589691,1765857111147,-2058.03,0.00013698,2]
[398589692,1765857111156,-2058.03,0.00013698,2]
[398589693,1765857111165,-1330.94,0.00013698,2]
[398589694,1765857111174,-2058.03,0.00013698,2]
[398589695,1765857111184,-2058.03,0.00013698,2]
[398589696,1765857111193,-2058.03,0.00013698,2]
[398589697,1765857111202,-2058.03,0.00013698,2]
[398589698,1765857111211,-2058.03,0.00013698,2]
[398589699,1765857111221,-2058.03,0.00013698,2]
[398589700,1765857111230,-2058.03,0.00013698,2]
[398589701,1765857111239,-2058.03,0.00013698,2]
[398589702,1765857111248,-2058.03,0.00013698,2]
[398589703,1765857111257,-2058.03,0.00013698,2]
[398589704,1765857111266,-2058.03,0.00013698,2]
[398589705,1765857111275,-2058.03,0.00013698,2]
[398589706,1765857111285,-2058.03,0.00013698,2]
[398589707,1765857111294,-2058.03,0.00013698,2]
[398589708,1765857111303,-2058.03,0.00013698,2]
[398589709,1765857111313,-2058.03,0.00013698,2]
[398589710,1765857111324,-2058.03,0.00013698,2]
[398589711,1765857111334,-2058.03,0.00013698,2]
[398589712,1765857111345,-2058.03,0.00013698,2]
[398589713,1765857111355,-502.75,0.00013698,2]
[398589714,1765857111365,-2058.03,0.00013698,2]
[398589715,1765857111376,-1721.89,0.00013698,2]
[398589716,1765857111385,-2058.0316349,0.00013698,2]
[398589717,1765857111394,-1471.73,0.00013698,2]
[398589718,1765857111403,-1794.66,0.00013698,2]
[398589719,1765857111412,-500.0,0.00013698,2]
[398589720,1765857111421,-1436.2,0.00013698,2]
[398589721,1765857111431,-919.0,0.00013698,2]
[398589722,1765857111439,-1483.78,0.00013698,2]
[398589723,1765857111449,-500.0,0.00013698,2]
[398589724,1765857111459,-9283.55,0.00013698,2]
[398589725,1765857111469,-1109.0,0.00013698,2]
[398589726,1765857111479,-930.78,0.00013698,2]
[398589727,1765857111488,-700.85,0.00013698,2]
[398589728,1765857111497,-500.0,0.00013698,2]
[398589729,1765857111507,-2453.55,0.00013698,2]
[398589730,1765857111518,-707.6,0.00013698,2]
[398589731,1765857111527,-536.25,0.00013698,2]
[398589732,1765857111536,-500.0,0.00013698,2]
[398589733,1765857111547,-500.0,0.00013698,2]
[398589734,1765857111557,-990.55,0.00013698,2]
[398589735,1765857111566,-500.0,0.00013698,2]
[398589736,1765857111575,-2349.49,0.00013698,2]
[398589737,1765857111584,-2196.03,0.00013698,2]
[398589738,1765857111593,-1420.86,0.00013698,2]
[398589739,1765857111603,-1354.29,0.00013698,2]
[398589740,1765857111616,-1566.76,0.00013698,2]
[398589741,1765857111626,-500.0,0.00013698,2]
[398589742,1765857111635,-500.0,0.00013698,2]
[398589743,1765857111644,-1789.22,0.00013698,2]
[398589744,1765857111654,-500.0,0.00013698,2]
[398589745,1765857111664,-975.67,0.00013698,2]
[398589746,1765857111673,-997.09,0.00013698,2]
[398589747,1765857111683,-1344.17,0.00013698,2]
[398589748,1765857111693,-600.75,0.00013698,2]
[398589749,1765857111703,-500.0,0.00013698,2]
[398589750,1765857111711,-1000.0,0.00013698,2]
[398589751,1765857111720,-575.01049876,0.00013698,2]
[398589752,1765857111729,-4842.15,0.00013698,2]
[398589753,1765857111739,-206.56738726,0.00013698,2]
[398589754,1765857111747,-513.63,0.00013698,2]
[398589755,1765857111756,-938.39,0.00013698,2]
[398589756,1765857111766,-1372.69,0.00013698,2]
[398589757,1765857111775,-500.0,0.00013698,2]
[398589758,1765857111784,-1192.19,0.00013698,2]
[398589759,1765857111793,-825.5,0.00013698,2]
[398589760,1765857111872,-500.0,0.00013698,2]
[398589761,1765857111881,-2748.55,0.00013698,2]
[398589762,1765857111891,-2322.09,0.00013698,2]
[398589763,1765857111900,-708.11,0.00013698,2]
[398589764,1765857111909,-2125.4,0.00013698,2]
[398589765,1765857111918,-500.0,0.00013698,2]
[398589766,1765857111927,-6830.61,0.00013698,2]
[398589767,1765857111936,-500.0,0.00013698,2]
[398589768,1765857111945,-1319.15,0.00013698,2]
[398589769,1765857111954,-8377.94,0.00013698,2]
[398589770,1765857111962,-1319.15,0.00013698,2]
[398589771,1765857111971,-1319.15,0.00013698,2]
[398589772,1765857111981,-1319.15,0.00013698,2]
[398589773,1765857111990,-1319.15,0.00013698,2]
[398589774,1765857111999,-1319.15,0.00013698,2]
[398589775,1765857112009,-1319.15,0.00013698,2]
[398589776,1765857112018,-1319.15,0.00013698,2]
[398589777,1765857112028,-1319.15,0.00013698,2]
[398589778,1765857112037,-1319.15,0.00013698,2]